{"text_format":"3","workbook":"xlsx","n_sheets":6,"sheets":["Cape Metropolitan","Cape Winelands","Overberg","West Coast","Garden Route","Central Karoo"],"read":"whole","date_system":"1900"}

{"sheet":"Cape Metropolitan","index":0,"n_rows":101,"n_cols":6,"rows_kept":101,"merged":[[1,0,1,5],[2,0,2,5],[4,0,4,5],[5,0,5,5],[6,0,6,5],[14,0,14,5],[15,0,15,5],[21,0,21,5],[34,0,34,5],[35,1,35,2],[36,1,36,2],[37,1,37,2],[38,1,38,2],[39,1,39,2],[40,1,40,2],[41,1,41,2],[42,1,42,2],[43,1,43,2],[45,0,45,5],[53,0,53,5],[59,0,59,5],[61,0,61,5],[62,0,62,5],[68,0,68,5]]}
[]
["WCGHSC 0329/2025: HEALTH CARE RISK WASTE HANDLING SERVICE FOR A THREE YEAR PERIOD"]
["WCBD 3.1  PRICING SCHEDULE"]
["Bidder Name: "]
["CAPE METROPOLITAN DISTRICT"]
["BIO HAZARDOUS WASTE/ INFECTIOUS WASTE (INFECTIOUS WASTE DISPOSABLE BOX SET"]
["Complete Box set = Box with lid, liner and cable tie"]
["ITEM DESCRIPTION","Unit","Max Waste Mass (kg)","BID PRICE INCLUDING VAT -    YEAR 1","BID PRICE INCLUDING VAT -   YEAR 2","BID PRICE INCLUDING VAT -    YEAR 3"]
["25 litre box set","each",null,0,0,0]
["50 litre box set","each",null,0,0,0]
["90 litre box set","each",null,0,0,0]
["140 to 142 litre box sets: \nBidder to quote on any size in this range, Bidders must only quote on one item.  \nIndicate which size you have quoted on:","each",null,0,0,0]
["Infectious waste per kilogram rate (inclusive of collection/transport, treatment and disposal)","rate ",null,0,0,0]
["Total amount for catergory",null,null,{"$f":"SUM(D9:D13)","v":0},{"$f":"SUM(E9:E13)","v":0},{"$f":"SUM(F9:F13)","v":0}]
["INFECTIOUS WASTE RE-USABLE CONTAINERS (RED)"]
["Container = Container, cable tie, liner and disposal rate"]
["ITEM DESCRIPTION","Unit","Max Waste Mass (kg)","BID PRICE INCLUDING VAT -    YEAR 1                       All inclusive Service ","BID PRICE INCLUDING VAT -    YEAR 2                   All inclusive Service ","BID PRICE INCLUDING VAT -    YEAR 3                       All inclusive Service "]
["45 to 50 litre Re-usable:\nBidder to quote on any size in this range, Bidders must only quote on one item.  \nIndicate which size you have quoted on:","each",null,0,0,0]
["70 to 90 litre Re-usable:\nBidder to quote on any size in this range, Bidders must only quote on one item.  \nIndicate which size you have quoted on:","each",null,0,0,0]
["120 to 125 litre Re-usable\nBidder to quote on any size in this range, Bidders must only quote on one item.  \nIndicate which size you have quoted on:","each",null,0,0,0]
["Total amount for catergory",null,null,{"$f":"SUM(D18:D20)","v":0},{"$f":"SUM(E18:E20)","v":0},{"$f":"SUM(F18:F20)","v":0}]
["SHARPS WASTE (YELLOW)"]
["ITEM DESCRIPTION - CONTAINER","Unit","Max Waste Mass (kg)","BID PRICE INCLUDING VAT -    YEAR 1","BID PRICE INCLUDING VAT -   YEAR 2","BID PRICE INCLUDING VAT -    YEAR 3"]
["500 ml","each ",null,0,0,0]
["1 litre","each ",null,0,0,0]
["5 litre","each ",null,0,0,0]
["7.6 litre","each ",null,0,0,0]
["10 litre","each ",null,0,0,0]
["15 litreTROCAR","each ",null,0,0,0]
["20 litre","each ",null,0,0,0]
["25 litre","each ",null,0,0,0]
["60 Litre  -  Long Sharps ","each ",null,0,0,0]
["Sharps Waste Per Kilogram Rate (inclusive of collection/transport, treatment and disposal)\n","rate "]
["Total amount for catergory",null,null,{"$f":"SUM(D24:D31)","v":0},{"$f":"SUM(E24:E31)","v":0},{"$f":"SUM(F24:F31)","v":0}]
["LINERS (RED)"]
["ITEM DESCRIPTION - LINER","Unit",null,"BID PRICE INCLUDING VAT -    YEAR 1","BID PRICE INCLUDING VAT -   YEAR 2","BID PRICE INCLUDING VAT -    YEAR 3"]
["30 litre (60um)","per pack of ten (10)",null,0,0,0]
["50 litre (60um)","per pack of ten (10)",null,0,0,0]
["Sputum liner (60um)","per pack of ten (10)",null,0,0,0]
["70 litre (80um)","per pack of ten (10)",null,0,0,0]
["90 litre (80um)","per pack of ten (10)",null,0,0,0]
["142 litre (80um)","per pack of ten (10)",null,0,0,0]
["matress plastice liner (80um)","per pack of ten (10)",null,0,0,0]
["soiled matress ","rate per matress",null,0,0,0]
["Total amount for catergory",null,null,{"$f":"SUM(D37:D44)","v":0},{"$f":"SUM(E37:E44)","v":0},0]
["ANATOMICAL WASTE (RED)"]
["ITEM DESCRIPTION - CONTAINER","Unit","Max Waste Mass (kg)","BID PRICE INCLUDING VAT -    YEAR 1","BID PRICE INCLUDING VAT -   YEAR 2","BID PRICE INCLUDING VAT -    YEAR 3"]
["1 litre","each",null,0,0,0]
["5 litre","each",null,0,0,0]
["10 litre","each",null,0,0,0]
["20 litre","each",null,0,0,0]
["Anatomical Per Kilogram Rate (inclusive of collection/transport, treatment and disposal)","rate",null,0,0,0]
["120 litre red re-usable wheelie bin - for large/long limb amputations- All Inclusive of liner, cable tie, and disposable rate","All Inclusive rate each",null,0,0,0]
["PHARMACEUTICAL WASTE (DARK GREEN)"]
["ITEM DESCRIPTION - CONTAINER","Unit","Max Waste Mass (kg)","BID PRICE INCLUDING VAT -    YEAR 1","BID PRICE INCLUDING VAT -   YEAR 2","BID PRICE INCLUDING VAT -    YEAR 3"]
["5 litre","each",null,0,0,0]
["10 litre","each",null,0,0,0]
["20 litre","each",null,0,0,0]
["Pharmaceutical Per Kilogram Rate (inclusive of collection/transport, treatment and disposal)","rate",null,0,0,0]
["RADIOACTIVE WASTE ON QUOTATION"]
["ITEM DESCRIPTION - CONTAINER","Unit","Max Waste Mass (kg)","BID PRICE INCLUDING VAT -    YEAR 1","BID PRICE INCLUDING VAT -   YEAR 2","BID PRICE INCLUDING VAT -    YEAR 3"]
["On quotation basis - related to market value"]
["CYTOTOXIC WASTE (DARK GREEN)"]
["ITEM DESCRIPTION - CONTAINER","Unit","Max Waste Mass (kg)","BID PRICE INCLUDING VAT -    YEAR 1","BID PRICE INCLUDING VAT -   YEAR 2","BID PRICE INCLUDING VAT -    YEAR 3"]
["5 litre sharps yellow with\nCytotoxic hazard label (the sharps is Yellow due to legislation all other cytotoxic containers are dark green)",null,null,0,0,0]
["5 litre dark green with\nCytotoxic hazard label",null,null,0,0,0]
["20 litre dark green with\nCytotoxic hazard label",null,null,0,0,0]
["per kilogram rate",null,null,0,0,0]
["ISOLATION WASTE (BOX WITH LIDS)"]
[]
["25 litre box with lid",null,null,0,0,0]
["50 litre box with lid",null,null,0,0,0]
["90 litre box with lid",null,null,0,0,0]
["142 litre box with lid",null,null,0,0,0]
["per kilogram rate",null,null,0,0,0]
["SHARPS CONTAINERS"]
[]
["1 litre",null,null,0,0,0]
["5 litres",null,null,0,0,0]
["10 litres",null,null,0,0,0]
["15 litres TROCAR",null,null,0,0,0]
["20 litres",null,null,0,0,0]
["25 litres",null,null,0,0,0]
["Isolation waste per kilogram rate (incl. collection, transport, treatment and disposal)",null,null,0,0,0]
["Isolation waste stickers inline with SANS Code 10248-1:2008 size: 100mm x 100mm",null,null,0,0,0]
["ACCESSORIES"]
[]
["cable ties 100 pack",null,null,0,0,0]
["brackets for 5 litre sharps",null,null,0,0,0]
["brackets for 7.6 litre sharps",null,null,0,0,0]
["brackets for 10 litre sharps",null,null,0,0,0]
["Bio Hazardous tape \n48mm x 50m",null,null,0,0,0]
["Spill kit",null,null,0,0,0]
["Tissue Register",null,null,0,0,0]
["Bio Hazardous Signage 1",null,null,0,0,0]
["Bio Hazardous Signage 2",null,null,0,0,0]
["EXTRA ORDINARY ARTICLES"]
[]
["florescent tubes \n6ft cardboard box",null,null,0,0,0]
["florescent tubes \n8ft cardboard box",null,null,0,0,0]
["florescent tubes \n5ft cardboard box",null,null,0,0,0]

{"sheet":"Cape Winelands","index":1,"n_rows":101,"n_cols":6,"rows_kept":101,"merged":[[1,0,1,5],[2,0,2,5],[4,0,4,5],[5,0,5,5],[6,0,6,5],[14,0,14,5],[15,0,15,5],[21,0,21,5],[34,0,34,5],[35,1,35,2],[36,1,36,2],[37,1,37,2],[38,1,38,2],[39,1,39,2],[40,1,40,2],[41,1,41,2],[42,1,42,2],[43,1,43,2],[45,0,45,5],[53,0,53,5],[59,0,59,5],[61,0,61,5],[62,0,62,5],[68,0,68,5]]}
[]
["WCGHSC 0329/2025: HEALTH CARE RISK WASTE HANDLING SERVICE FOR A THREE YEAR PERIOD"]
["WCBD 3.1  PRICING SCHEDULE"]
["Bidder Name: "]
["CAPE WINELANDS DISTRICT"]
["BIO HAZARDOUS WASTE/ INFECTIOUS WASTE (INFECTIOUS WASTE DISPOSABLE BOX SET"]
["Complete Box set = Box with lid, liner and cable tie"]
["ITEM DESCRIPTION","Unit","Max Waste Mass (kg)","BID PRICE INCLUDING VAT -    YEAR 1","BID PRICE INCLUDING VAT -   YEAR 2","BID PRICE INCLUDING VAT -    YEAR 3"]
["25 litre box set","each",null,0,0,0]
["50 litre box set","each",null,0,0,0]
["90 litre box set","each",null,0,0,0]
["140 to 142 litre box sets: \nBidder to quote on any size in this range, Bidders must only quote on one item.  \nIndicate which size you have quoted on:","each",null,0,0,0]
["Infectious waste per kilogram rate (inclusive of collection/transport, treatment and disposal)","rate ",null,0,0,0]
["Total amount for catergory",null,null,{"$f":"SUM(D9:D13)","v":0},{"$f":"SUM(E9:E13)","v":0},{"$f":"SUM(F9:F13)","v":0}]
["INFECTIOUS WASTE RE-USABLE CONTAINERS (RED)"]
["Container = Container, cable tie, liner and disposal rate"]
["ITEM DESCRIPTION","Unit","Max Waste Mass (kg)","BID PRICE INCLUDING VAT -    YEAR 1                       All inclusive Service ","BID PRICE INCLUDING VAT -    YEAR 2                   All inclusive Service ","BID PRICE INCLUDING VAT -    YEAR 3                       All inclusive Service "]
["45 to 50 litre Re-usable:\nBidder to quote on any size in this range, Bidders must only quote on one item.  \nIndicate which size you have quoted on:","each",null,0,0,0]
["70 to 90 litre Re-usable:\nBidder to quote on any size in this range, Bidders must only quote on one item.  \nIndicate which size you have quoted on:","each",null,0,0,0]
["120 to 125 litre Re-usable\nBidder to quote on any size in this range, Bidders must only quote on one item.  \nIndicate which size you have quoted on:","each",null,0,0,0]
["Total amount for catergory",null,null,{"$f":"SUM(D18:D20)","v":0},{"$f":"SUM(E18:E20)","v":0},{"$f":"SUM(F18:F20)","v":0}]
["SHARPS WASTE (YELLOW)"]
["ITEM DESCRIPTION - CONTAINER","Unit","Max Waste Mass (kg)","BID PRICE INCLUDING VAT -    YEAR 1","BID PRICE INCLUDING VAT -   YEAR 2","BID PRICE INCLUDING VAT -    YEAR 3"]
["500 ml","each ",null,0,0,0]
["1 litre","each ",null,0,0,0]
["5 litre","each ",null,0,0,0]
["7.6 litre","each ",null,0,0,0]
["10 litre","each ",null,0,0,0]
["15 litreTROCAR","each ",null,0,0,0]
["20 litre","each ",null,0,0,0]
["25 litre","each ",null,0,0,0]
["60 Litre  -  Long Sharps ","each ",null,0,0,0]
["Sharps Waste Per Kilogram Rate (inclusive of collection/transport, treatment and disposal)\n","rate "]
["Total amount for catergory",null,null,{"$f":"SUM(D24:D31)","v":0},{"$f":"SUM(E24:E31)","v":0},{"$f":"SUM(F24:F31)","v":0}]
["LINERS (RED)"]
["ITEM DESCRIPTION - LINER","Unit",null,"BID PRICE INCLUDING VAT -    YEAR 1","BID PRICE INCLUDING VAT -   YEAR 2","BID PRICE INCLUDING VAT -    YEAR 3"]
["30 litre (60um)","per pack of ten (10)",null,0,0,0]
["50 litre (60um)","per pack of ten (10)",null,0,0,0]
["Sputum liner (60um)","per pack of ten (10)",null,0,0,0]
["70 litre (80um)","per pack of ten (10)",null,0,0,0]
["90 litre (80um)","per pack of ten (10)",null,0,0,0]
["142 litre (80um)","per pack of ten (10)",null,0,0,0]
["matress plastice liner (80um)","per pack of ten (10)",null,0,0,0]
["soiled matress ","rate per matress",null,0,0,0]
["Total amount for catergory",null,null,{"$f":"SUM(D37:D44)","v":0},{"$f":"SUM(E37:E44)","v":0},0]
["ANATOMICAL WASTE (RED)"]
["ITEM DESCRIPTION - CONTAINER","Unit","Max Waste Mass (kg)","BID PRICE INCLUDING VAT -    YEAR 1","BID PRICE INCLUDING VAT -   YEAR 2","BID PRICE INCLUDING VAT -    YEAR 3"]
["1 litre","each",null,0,0,0]
["5 litre","each",null,0,0,0]
["10 litre","each",null,0,0,0]
["20 litre","each",null,0,0,0]
["Anatomical Per Kilogram Rate (inclusive of collection/transport, treatment and disposal)","rate",null,0,0,0]
["120 litre red re-usable wheelie bin - for large/long limb amputations- All Inclusive of liner, cable tie, and disposable rate","All Inclusive rate each",null,0,0,0]
["PHARMACEUTICAL WASTE (DARK GREEN)"]
["ITEM DESCRIPTION - CONTAINER","Unit","Max Waste Mass (kg)","BID PRICE INCLUDING VAT -    YEAR 1","BID PRICE INCLUDING VAT -   YEAR 2","BID PRICE INCLUDING VAT -    YEAR 3"]
["5 litre","each",null,0,0,0]
["10 litre","each",null,0,0,0]
["20 litre","each",null,0,0,0]
["Pharmaceutical Per Kilogram Rate (inclusive of collection/transport, treatment and disposal)","rate",null,0,0,0]
["RADIOACTIVE WASTE ON QUOTATION"]
["ITEM DESCRIPTION - CONTAINER","Unit","Max Waste Mass (kg)","BID PRICE INCLUDING VAT -    YEAR 1","BID PRICE INCLUDING VAT -   YEAR 2","BID PRICE INCLUDING VAT -    YEAR 3"]
["On quotation basis - related to market value"]
["CYTOTOXIC WASTE (DARK GREEN)"]
["ITEM DESCRIPTION - CONTAINER","Unit","Max Waste Mass (kg)","BID PRICE INCLUDING VAT -    YEAR 1","BID PRICE INCLUDING VAT -   YEAR 2","BID PRICE INCLUDING VAT -    YEAR 3"]
["5 litre sharps yellow with\nCytotoxic hazard label (the sharps is Yellow due to legislation all other cytotoxic containers are dark green)",null,null,0,0,0]
["5 litre dark green with\nCytotoxic hazard label",null,null,0,0,0]
["20 litre dark green with\nCytotoxic hazard label",null,null,0,0,0]
["per kilogram rate",null,null,0,0,0]
["ISOLATION WASTE (BOX WITH LIDS)"]
[]
["25 litre box with lid",null,null,0,0,0]
["50 litre box with lid",null,null,0,0,0]
["90 litre box with lid",null,null,0,0,0]
["142 litre box with lid",null,null,0,0,0]
["per kilogram rate",null,null,0,0,0]
["SHARPS CONTAINERS"]
[]
["1 litre",null,null,0,0,0]
["5 litres",null,null,0,0,0]
["10 litres",null,null,0,0,0]
["15 litres TROCAR",null,null,0,0,0]
["20 litres",null,null,0,0,0]
["25 litres",null,null,0,0,0]
["Isolation waste per kilogram rate (incl. collection, transport, treatment and disposal)",null,null,0,0,0]
["Isolation waste stickers inline with SANS Code 10248-1:2008 size: 100mm x 100mm",null,null,0,0,0]
["ACCESSORIES"]
[]
["cable ties 100 pack",null,null,0,0,0]
["brackets for 5 litre sharps",null,null,0,0,0]
["brackets for 7.6 litre sharps",null,null,0,0,0]
["brackets for 10 litre sharps",null,null,0,0,0]
["Bio Hazardous tape \n48mm x 50m",null,null,0,0,0]
["Spill kit",null,null,0,0,0]
["Tissue Register",null,null,0,0,0]
["Bio Hazardous Signage 1",null,null,0,0,0]
["Bio Hazardous Signage 2",null,null,0,0,0]
["EXTRA ORDINARY ARTICLES"]
[]
["florescent tubes \n6ft cardboard box",null,null,0,0,0]
["florescent tubes \n8ft cardboard box",null,null,0,0,0]
["florescent tubes \n5ft cardboard box",null,null,0,0,0]

{"sheet":"Overberg","index":2,"n_rows":101,"n_cols":6,"rows_kept":101,"merged":[[1,0,1,5],[2,0,2,5],[4,0,4,5],[5,0,5,5],[6,0,6,5],[14,0,14,5],[15,0,15,5],[21,0,21,5],[34,0,34,5],[35,1,35,2],[36,1,36,2],[37,1,37,2],[38,1,38,2],[39,1,39,2],[40,1,40,2],[41,1,41,2],[42,1,42,2],[43,1,43,2],[45,0,45,5],[53,0,53,5],[59,0,59,5],[61,0,61,5],[62,0,62,5],[68,0,68,5]]}
[]
["WCGHSC 0329/2025: HEALTH CARE RISK WASTE HANDLING SERVICE FOR A THREE YEAR PERIOD"]
["WCBD 3.1  PRICING SCHEDULE"]
["Bidder Name: "]
["OVERBERG DISTRICT"]
["BIO HAZARDOUS WASTE/ INFECTIOUS WASTE (INFECTIOUS WASTE DISPOSABLE BOX SET"]
["Complete Box set = Box with lid, liner and cable tie"]
["ITEM DESCRIPTION","Unit","Max Waste Mass (kg)","BID PRICE INCLUDING VAT -    YEAR 1","BID PRICE INCLUDING VAT -   YEAR 2","BID PRICE INCLUDING VAT -    YEAR 3"]
["25 litre box set","each",null,0,0,0]
["50 litre box set","each",null,0,0,0]
["90 litre box set","each",null,0,0,0]
["140 to 142 litre box sets: \nBidder to quote on any size in this range, Bidders must only quote on one item.  \nIndicate which size you have quoted on:","each",null,0,0,0]
["Infectious waste per kilogram rate (inclusive of collection/transport, treatment and disposal)","rate ",null,0,0,0]
["Total amount for catergory",null,null,{"$f":"SUM(D9:D13)","v":0},{"$f":"SUM(E9:E13)","v":0},{"$f":"SUM(F9:F13)","v":0}]
["INFECTIOUS WASTE RE-USABLE CONTAINERS (RED)"]
["Container = Container, cable tie, liner and disposal rate"]
["ITEM DESCRIPTION","Unit","Max Waste Mass (kg)","BID PRICE INCLUDING VAT -    YEAR 1                       All inclusive Service ","BID PRICE INCLUDING VAT -    YEAR 2                   All inclusive Service ","BID PRICE INCLUDING VAT -    YEAR 3                       All inclusive Service "]
["45 to 50 litre Re-usable:\nBidder to quote on any size in this range, Bidders must only quote on one item.  \nIndicate which size you have quoted on:","each",null,0,0,0]
["70 to 90 litre Re-usable:\nBidder to quote on any size in this range, Bidders must only quote on one item.  \nIndicate which size you have quoted on:","each",null,0,0,0]
["120 to 125 litre Re-usable\nBidder to quote on any size in this range, Bidders must only quote on one item.  \nIndicate which size you have quoted on:","each",null,0,0,0]
["Total amount for catergory",null,null,{"$f":"SUM(D18:D20)","v":0},{"$f":"SUM(E18:E20)","v":0},{"$f":"SUM(F18:F20)","v":0}]
["SHARPS WASTE (YELLOW)"]
["ITEM DESCRIPTION - CONTAINER","Unit","Max Waste Mass (kg)","BID PRICE INCLUDING VAT -    YEAR 1","BID PRICE INCLUDING VAT -   YEAR 2","BID PRICE INCLUDING VAT -    YEAR 3"]
["500 ml","each ",null,0,0,0]
["1 litre","each ",null,0,0,0]
["5 litre","each ",null,0,0,0]
["7.6 litre","each ",null,0,0,0]
["10 litre","each ",null,0,0,0]
["15 litreTROCAR","each ",null,0,0,0]
["20 litre","each ",null,0,0,0]
["25 litre","each ",null,0,0,0]
["60 Litre  -  Long Sharps ","each ",null,0,0,0]
["Sharps Waste Per Kilogram Rate (inclusive of collection/transport, treatment and disposal)\n","rate "]
["Total amount for catergory",null,null,{"$f":"SUM(D24:D31)","v":0},{"$f":"SUM(E24:E31)","v":0},{"$f":"SUM(F24:F31)","v":0}]
["LINERS (RED)"]
["ITEM DESCRIPTION - LINER","Unit",null,"BID PRICE INCLUDING VAT -    YEAR 1","BID PRICE INCLUDING VAT -   YEAR 2","BID PRICE INCLUDING VAT -    YEAR 3"]
["30 litre (60um)","per pack of ten (10)",null,0,0,0]
["50 litre (60um)","per pack of ten (10)",null,0,0,0]
["Sputum liner (60um)","per pack of ten (10)",null,0,0,0]
["70 litre (80um)","per pack of ten (10)",null,0,0,0]
["90 litre (80um)","per pack of ten (10)",null,0,0,0]
["142 litre (80um)","per pack of ten (10)",null,0,0,0]
["matress plastice liner (80um)","per pack of ten (10)",null,0,0,0]
["soiled matress ","rate per matress",null,0,0,0]
["Total amount for catergory",null,null,{"$f":"SUM(D37:D44)","v":0},{"$f":"SUM(E37:E44)","v":0},0]
["ANATOMICAL WASTE (RED)"]
["ITEM DESCRIPTION - CONTAINER","Unit","Max Waste Mass (kg)","BID PRICE INCLUDING VAT -    YEAR 1","BID PRICE INCLUDING VAT -   YEAR 2","BID PRICE INCLUDING VAT -    YEAR 3"]
["1 litre","each",null,0,0,0]
["5 litre","each",null,0,0,0]
["10 litre","each",null,0,0,0]
["20 litre","each",null,0,0,0]
["Anatomical Per Kilogram Rate (inclusive of collection/transport, treatment and disposal)","rate",null,0,0,0]
["120 litre red re-usable wheelie bin - for large/long limb amputations- All Inclusive of liner, cable tie, and disposable rate","All Inclusive rate each",null,0,0,0]
["PHARMACEUTICAL WASTE (DARK GREEN)"]
["ITEM DESCRIPTION - CONTAINER","Unit","Max Waste Mass (kg)","BID PRICE INCLUDING VAT -    YEAR 1","BID PRICE INCLUDING VAT -   YEAR 2","BID PRICE INCLUDING VAT -    YEAR 3"]
["5 litre","each",null,0,0,0]
["10 litre","each",null,0,0,0]
["20 litre","each",null,0,0,0]
["Pharmaceutical Per Kilogram Rate (inclusive of collection/transport, treatment and disposal)","rate",null,0,0,0]
["RADIOACTIVE WASTE ON QUOTATION"]
["ITEM DESCRIPTION - CONTAINER","Unit","Max Waste Mass (kg)","BID PRICE INCLUDING VAT -    YEAR 1","BID PRICE INCLUDING VAT -   YEAR 2","BID PRICE INCLUDING VAT -    YEAR 3"]
["On quotation basis - related to market value"]
["CYTOTOXIC WASTE (DARK GREEN)"]
["ITEM DESCRIPTION - CONTAINER","Unit","Max Waste Mass (kg)","BID PRICE INCLUDING VAT -    YEAR 1","BID PRICE INCLUDING VAT -   YEAR 2","BID PRICE INCLUDING VAT -    YEAR 3"]
["5 litre sharps yellow with\nCytotoxic hazard label (the sharps is Yellow due to legislation all other cytotoxic containers are dark green)",null,null,0,0,0]
["5 litre dark green with\nCytotoxic hazard label",null,null,0,0,0]
["20 litre dark green with\nCytotoxic hazard label",null,null,0,0,0]
["per kilogram rate",null,null,0,0,0]
["ISOLATION WASTE (BOX WITH LIDS)"]
[]
["25 litre box with lid",null,null,0,0,0]
["50 litre box with lid",null,null,0,0,0]
["90 litre box with lid",null,null,0,0,0]
["142 litre box with lid",null,null,0,0,0]
["per kilogram rate",null,null,0,0,0]
["SHARPS CONTAINERS"]
[]
["1 litre",null,null,0,0,0]
["5 litres",null,null,0,0,0]
["10 litres",null,null,0,0,0]
["15 litres TROCAR",null,null,0,0,0]
["20 litres",null,null,0,0,0]
["25 litres",null,null,0,0,0]
["Isolation waste per kilogram rate (incl. collection, transport, treatment and disposal)",null,null,0,0,0]
["Isolation waste stickers inline with SANS Code 10248-1:2008 size: 100mm x 100mm",null,null,0,0,0]
["ACCESSORIES"]
[]
["cable ties 100 pack",null,null,0,0,0]
["brackets for 5 litre sharps",null,null,0,0,0]
["brackets for 7.6 litre sharps",null,null,0,0,0]
["brackets for 10 litre sharps",null,null,0,0,0]
["Bio Hazardous tape \n48mm x 50m",null,null,0,0,0]
["Spill kit",null,null,0,0,0]
["Tissue Register",null,null,0,0,0]
["Bio Hazardous Signage 1",null,null,0,0,0]
["Bio Hazardous Signage 2",null,null,0,0,0]
["EXTRA ORDINARY ARTICLES"]
[]
["florescent tubes \n6ft cardboard box",null,null,0,0,0]
["florescent tubes \n8ft cardboard box",null,null,0,0,0]
["florescent tubes \n5ft cardboard box",null,null,0,0,0]

{"sheet":"West Coast","index":3,"n_rows":101,"n_cols":6,"rows_kept":101,"merged":[[1,0,1,5],[2,0,2,5],[4,0,4,5],[5,0,5,5],[6,0,6,5],[14,0,14,5],[15,0,15,5],[21,0,21,5],[34,0,34,5],[35,1,35,2],[36,1,36,2],[37,1,37,2],[38,1,38,2],[39,1,39,2],[40,1,40,2],[41,1,41,2],[42,1,42,2],[43,1,43,2],[45,0,45,5],[53,0,53,5],[59,0,59,5],[61,0,61,5],[62,0,62,5],[68,0,68,5]]}
[]
["WCGHSC 0329/2025: HEALTH CARE RISK WASTE HANDLING SERVICE FOR A THREE YEAR PERIOD"]
["WCBD 3.1  PRICING SCHEDULE"]
["Bidder Name: "]
["WEST COAST DISTRICT"]
["BIO HAZARDOUS WASTE/ INFECTIOUS WASTE (INFECTIOUS WASTE DISPOSABLE BOX SET"]
["Complete Box set = Box with lid, liner and cable tie"]
["ITEM DESCRIPTION","Unit","Max Waste Mass (kg)","BID PRICE INCLUDING VAT -    YEAR 1","BID PRICE INCLUDING VAT -   YEAR 2","BID PRICE INCLUDING VAT -    YEAR 3"]
["25 litre box set","each",null,0,0,0]
["50 litre box set","each",null,0,0,0]
["90 litre box set","each",null,0,0,0]
["140 to 142 litre box sets: \nBidder to quote on any size in this range, Bidders must only quote on one item.  \nIndicate which size you have quoted on:","each",null,0,0,0]
["Infectious waste per kilogram rate (inclusive of collection/transport, treatment and disposal)","rate ",null,0,0,0]
["Total amount for catergory",null,null,{"$f":"SUM(D9:D13)","v":0},{"$f":"SUM(E9:E13)","v":0},{"$f":"SUM(F9:F13)","v":0}]
["INFECTIOUS WASTE RE-USABLE CONTAINERS (RED)"]
["Container = Container, cable tie, liner and disposal rate"]
["ITEM DESCRIPTION","Unit","Max Waste Mass (kg)","BID PRICE INCLUDING VAT -    YEAR 1                       All inclusive Service ","BID PRICE INCLUDING VAT -    YEAR 2                   All inclusive Service ","BID PRICE INCLUDING VAT -    YEAR 3                       All inclusive Service "]
["45 to 50 litre Re-usable:\nBidder to quote on any size in this range, Bidders must only quote on one item.  \nIndicate which size you have quoted on:","each",null,0,0,0]
["70 to 90 litre Re-usable:\nBidder to quote on any size in this range, Bidders must only quote on one item.  \nIndicate which size you have quoted on:","each",null,0,0,0]
["120 to 125 litre Re-usable\nBidder to quote on any size in this range, Bidders must only quote on one item.  \nIndicate which size you have quoted on:","each",null,0,0,0]
["Total amount for catergory",null,null,{"$f":"SUM(D18:D20)","v":0},{"$f":"SUM(E18:E20)","v":0},{"$f":"SUM(F18:F20)","v":0}]
["SHARPS WASTE (YELLOW)"]
["ITEM DESCRIPTION - CONTAINER","Unit","Max Waste Mass (kg)","BID PRICE INCLUDING VAT -    YEAR 1","BID PRICE INCLUDING VAT -   YEAR 2","BID PRICE INCLUDING VAT -    YEAR 3"]
["500 ml","each ",null,0,0,0]
["1 litre","each ",null,0,0,0]
["5 litre","each ",null,0,0,0]
["7.6 litre","each ",null,0,0,0]
["10 litre","each ",null,0,0,0]
["15 litreTROCAR","each ",null,0,0,0]
["20 litre","each ",null,0,0,0]
["25 litre","each ",null,0,0,0]
["60 Litre  -  Long Sharps ","each ",null,0,0,0]
["Sharps Waste Per Kilogram Rate (inclusive of collection/transport, treatment and disposal)\n","rate "]
["Total amount for catergory",null,null,{"$f":"SUM(D24:D31)","v":0},{"$f":"SUM(E24:E31)","v":0},{"$f":"SUM(F24:F31)","v":0}]
["LINERS (RED)"]
["ITEM DESCRIPTION - LINER","Unit",null,"BID PRICE INCLUDING VAT -    YEAR 1","BID PRICE INCLUDING VAT -   YEAR 2","BID PRICE INCLUDING VAT -    YEAR 3"]
["30 litre (60um)","per pack of ten (10)",null,0,0,0]
["50 litre (60um)","per pack of ten (10)",null,0,0,0]
["Sputum liner (60um)","per pack of ten (10)",null,0,0,0]
["70 litre (80um)","per pack of ten (10)",null,0,0,0]
["90 litre (80um)","per pack of ten (10)",null,0,0,0]
["142 litre (80um)","per pack of ten (10)",null,0,0,0]
["matress plastice liner (80um)","per pack of ten (10)",null,0,0,0]
["soiled matress ","rate per matress",null,0,0,0]
["Total amount for catergory",null,null,{"$f":"SUM(D37:D44)","v":0},{"$f":"SUM(E37:E44)","v":0},0]
["ANATOMICAL WASTE (RED)"]
["ITEM DESCRIPTION - CONTAINER","Unit","Max Waste Mass (kg)","BID PRICE INCLUDING VAT -    YEAR 1","BID PRICE INCLUDING VAT -   YEAR 2","BID PRICE INCLUDING VAT -    YEAR 3"]
["1 litre","each",null,0,0,0]
["5 litre","each",null,0,0,0]
["10 litre","each",null,0,0,0]
["20 litre","each",null,0,0,0]
["Anatomical Per Kilogram Rate (inclusive of collection/transport, treatment and disposal)","rate",null,0,0,0]
["120 litre red re-usable wheelie bin - for large/long limb amputations- All Inclusive of liner, cable tie, and disposable rate","All Inclusive rate each",null,0,0,0]
["PHARMACEUTICAL WASTE (DARK GREEN)"]
["ITEM DESCRIPTION - CONTAINER","Unit","Max Waste Mass (kg)","BID PRICE INCLUDING VAT -    YEAR 1","BID PRICE INCLUDING VAT -   YEAR 2","BID PRICE INCLUDING VAT -    YEAR 3"]
["5 litre","each",null,0,0,0]
["10 litre","each",null,0,0,0]
["20 litre","each",null,0,0,0]
["Pharmaceutical Per Kilogram Rate (inclusive of collection/transport, treatment and disposal)","rate",null,0,0,0]
["RADIOACTIVE WASTE ON QUOTATION"]
["ITEM DESCRIPTION - CONTAINER","Unit","Max Waste Mass (kg)","BID PRICE INCLUDING VAT -    YEAR 1","BID PRICE INCLUDING VAT -   YEAR 2","BID PRICE INCLUDING VAT -    YEAR 3"]
["On quotation basis - related to market value"]
["CYTOTOXIC WASTE (DARK GREEN)"]
["ITEM DESCRIPTION - CONTAINER","Unit","Max Waste Mass (kg)","BID PRICE INCLUDING VAT -    YEAR 1","BID PRICE INCLUDING VAT -   YEAR 2","BID PRICE INCLUDING VAT -    YEAR 3"]
["5 litre sharps yellow with\nCytotoxic hazard label (the sharps is Yellow due to legislation all other cytotoxic containers are dark green)",null,null,0,0,0]
["5 litre dark green with\nCytotoxic hazard label",null,null,0,0,0]
["20 litre dark green with\nCytotoxic hazard label",null,null,0,0,0]
["per kilogram rate",null,null,0,0,0]
["ISOLATION WASTE (BOX WITH LIDS)"]
[]
["25 litre box with lid",null,null,0,0,0]
["50 litre box with lid",null,null,0,0,0]
["90 litre box with lid",null,null,0,0,0]
["142 litre box with lid",null,null,0,0,0]
["per kilogram rate",null,null,0,0,0]
["SHARPS CONTAINERS"]
[]
["1 litre",null,null,0,0,0]
["5 litres",null,null,0,0,0]
["10 litres",null,null,0,0,0]
["15 litres TROCAR",null,null,0,0,0]
["20 litres",null,null,0,0,0]
["25 litres",null,null,0,0,0]
["Isolation waste per kilogram rate (incl. collection, transport, treatment and disposal)",null,null,0,0,0]
["Isolation waste stickers inline with SANS Code 10248-1:2008 size: 100mm x 100mm",null,null,0,0,0]
["ACCESSORIES"]
[]
["cable ties 100 pack",null,null,0,0,0]
["brackets for 5 litre sharps",null,null,0,0,0]
["brackets for 7.6 litre sharps",null,null,0,0,0]
["brackets for 10 litre sharps",null,null,0,0,0]
["Bio Hazardous tape \n48mm x 50m",null,null,0,0,0]
["Spill kit",null,null,0,0,0]
["Tissue Register",null,null,0,0,0]
["Bio Hazardous Signage 1",null,null,0,0,0]
["Bio Hazardous Signage 2",null,null,0,0,0]
["EXTRA ORDINARY ARTICLES"]
[]
["florescent tubes \n6ft cardboard box",null,null,0,0,0]
["florescent tubes \n8ft cardboard box",null,null,0,0,0]
["florescent tubes \n5ft cardboard box",null,null,0,0,0]

{"sheet":"Garden Route","index":4,"n_rows":101,"n_cols":6,"rows_kept":101,"merged":[[1,0,1,5],[2,0,2,5],[4,0,4,5],[5,0,5,5],[6,0,6,5],[14,0,14,5],[15,0,15,5],[21,0,21,5],[34,0,34,5],[35,1,35,2],[36,1,36,2],[37,1,37,2],[38,1,38,2],[39,1,39,2],[40,1,40,2],[41,1,41,2],[42,1,42,2],[43,1,43,2],[45,0,45,5],[53,0,53,5],[59,0,59,5],[61,0,61,5],[62,0,62,5],[68,0,68,5]]}
[]
["WCGHSC 0329/2025: HEALTH CARE RISK WASTE HANDLING SERVICE FOR A THREE YEAR PERIOD"]
["WCBD 3.1  PRICING SCHEDULE"]
["Bidder Name: "]
["GARDEN ROUTE DISTRICT"]
["BIO HAZARDOUS WASTE/ INFECTIOUS WASTE (INFECTIOUS WASTE DISPOSABLE BOX SET"]
["Complete Box set = Box with lid, liner and cable tie"]
["ITEM DESCRIPTION","Unit","Max Waste Mass (kg)","BID PRICE INCLUDING VAT -    YEAR 1","BID PRICE INCLUDING VAT -   YEAR 2","BID PRICE INCLUDING VAT -    YEAR 3"]
["25 litre box set","each",null,0,0,0]
["50 litre box set","each",null,0,0,0]
["90 litre box set","each",null,0,0,0]
["140 to 142 litre box sets: \nBidder to quote on any size in this range, Bidders must only quote on one item.  \nIndicate which size you have quoted on:","each",null,0,0,0]
["Infectious waste per kilogram rate (inclusive of collection/transport, treatment and disposal)","rate ",null,0,0,0]
["Total amount for catergory",null,null,{"$f":"SUM(D9:D13)","v":0},{"$f":"SUM(E9:E13)","v":0},{"$f":"SUM(F9:F13)","v":0}]
["INFECTIOUS WASTE RE-USABLE CONTAINERS (RED)"]
["Container = Container, cable tie, liner and disposal rate"]
["ITEM DESCRIPTION","Unit","Max Waste Mass (kg)","BID PRICE INCLUDING VAT -    YEAR 1                       All inclusive Service ","BID PRICE INCLUDING VAT -    YEAR 2                   All inclusive Service ","BID PRICE INCLUDING VAT -    YEAR 3                       All inclusive Service "]
["45 to 50 litre Re-usable:\nBidder to quote on any size in this range, Bidders must only quote on one item.  \nIndicate which size you have quoted on:","each",null,0,0,0]
["70 to 90 litre Re-usable:\nBidder to quote on any size in this range, Bidders must only quote on one item.  \nIndicate which size you have quoted on:","each",null,0,0,0]
["120 to 125 litre Re-usable\nBidder to quote on any size in this range, Bidders must only quote on one item.  \nIndicate which size you have quoted on:","each",null,0,0,0]
["Total amount for catergory",null,null,{"$f":"SUM(D18:D20)","v":0},{"$f":"SUM(E18:E20)","v":0},{"$f":"SUM(F18:F20)","v":0}]
["SHARPS WASTE (YELLOW)"]
["ITEM DESCRIPTION - CONTAINER","Unit","Max Waste Mass (kg)","BID PRICE INCLUDING VAT -    YEAR 1","BID PRICE INCLUDING VAT -   YEAR 2","BID PRICE INCLUDING VAT -    YEAR 3"]
["500 ml","each ",null,0,0,0]
["1 litre","each ",null,0,0,0]
["5 litre","each ",null,0,0,0]
["7.6 litre","each ",null,0,0,0]
["10 litre","each ",null,0,0,0]
["15 litreTROCAR","each ",null,0,0,0]
["20 litre","each ",null,0,0,0]
["25 litre","each ",null,0,0,0]
["60 Litre  -  Long Sharps ","each ",null,0,0,0]
["Sharps Waste Per Kilogram Rate (inclusive of collection/transport, treatment and disposal)\n","rate "]
["Total amount for catergory",null,null,{"$f":"SUM(D24:D31)","v":0},{"$f":"SUM(E24:E31)","v":0},{"$f":"SUM(F24:F31)","v":0}]
["LINERS (RED)"]
["ITEM DESCRIPTION - LINER","Unit",null,"BID PRICE INCLUDING VAT -    YEAR 1","BID PRICE INCLUDING VAT -   YEAR 2","BID PRICE INCLUDING VAT -    YEAR 3"]
["30 litre (60um)","per pack of ten (10)",null,0,0,0]
["50 litre (60um)","per pack of ten (10)",null,0,0,0]
["Sputum liner (60um)","per pack of ten (10)",null,0,0,0]
["70 litre (80um)","per pack of ten (10)",null,0,0,0]
["90 litre (80um)","per pack of ten (10)",null,0,0,0]
["142 litre (80um)","per pack of ten (10)",null,0,0,0]
["matress plastice liner (80um)","per pack of ten (10)",null,0,0,0]
["soiled matress ","rate per matress",null,0,0,0]
["Total amount for catergory",null,null,{"$f":"SUM(D37:D44)","v":0},{"$f":"SUM(E37:E44)","v":0},0]
["ANATOMICAL WASTE (RED)"]
["ITEM DESCRIPTION - CONTAINER","Unit","Max Waste Mass (kg)","BID PRICE INCLUDING VAT -    YEAR 1","BID PRICE INCLUDING VAT -   YEAR 2","BID PRICE INCLUDING VAT -    YEAR 3"]
["1 litre","each",null,0,0,0]
["5 litre","each",null,0,0,0]
["10 litre","each",null,0,0,0]
["20 litre","each",null,0,0,0]
["Anatomical Per Kilogram Rate (inclusive of collection/transport, treatment and disposal)","rate",null,0,0,0]
["120 litre red re-usable wheelie bin - for large/long limb amputations- All Inclusive of liner, cable tie, and disposable rate","All Inclusive rate each",null,0,0,0]
["PHARMACEUTICAL WASTE (DARK GREEN)"]
["ITEM DESCRIPTION - CONTAINER","Unit","Max Waste Mass (kg)","BID PRICE INCLUDING VAT -    YEAR 1","BID PRICE INCLUDING VAT -   YEAR 2","BID PRICE INCLUDING VAT -    YEAR 3"]
["5 litre","each",null,0,0,0]
["10 litre","each",null,0,0,0]
["20 litre","each",null,0,0,0]
["Pharmaceutical Per Kilogram Rate (inclusive of collection/transport, treatment and disposal)","rate",null,0,0,0]
["RADIOACTIVE WASTE ON QUOTATION"]
["ITEM DESCRIPTION - CONTAINER","Unit","Max Waste Mass (kg)","BID PRICE INCLUDING VAT -    YEAR 1","BID PRICE INCLUDING VAT -   YEAR 2","BID PRICE INCLUDING VAT -    YEAR 3"]
["On quotation basis - related to market value"]
["CYTOTOXIC WASTE (DARK GREEN)"]
["ITEM DESCRIPTION - CONTAINER","Unit","Max Waste Mass (kg)","BID PRICE INCLUDING VAT -    YEAR 1","BID PRICE INCLUDING VAT -   YEAR 2","BID PRICE INCLUDING VAT -    YEAR 3"]
["5 litre sharps yellow with\nCytotoxic hazard label (the sharps is Yellow due to legislation all other cytotoxic containers are dark green)",null,null,0,0,0]
["5 litre dark green with\nCytotoxic hazard label",null,null,0,0,0]
["20 litre dark green with\nCytotoxic hazard label",null,null,0,0,0]
["per kilogram rate",null,null,0,0,0]
["ISOLATION WASTE (BOX WITH LIDS)"]
[]
["25 litre box with lid",null,null,0,0,0]
["50 litre box with lid",null,null,0,0,0]
["90 litre box with lid",null,null,0,0,0]
["142 litre box with lid",null,null,0,0,0]
["per kilogram rate",null,null,0,0,0]
["SHARPS CONTAINERS"]
[]
["1 litre",null,null,0,0,0]
["5 litres",null,null,0,0,0]
["10 litres",null,null,0,0,0]
["15 litres TROCAR",null,null,0,0,0]
["20 litres",null,null,0,0,0]
["25 litres",null,null,0,0,0]
["Isolation waste per kilogram rate (incl. collection, transport, treatment and disposal)",null,null,0,0,0]
["Isolation waste stickers inline with SANS Code 10248-1:2008 size: 100mm x 100mm",null,null,0,0,0]
["ACCESSORIES"]
[]
["cable ties 100 pack",null,null,0,0,0]
["brackets for 5 litre sharps",null,null,0,0,0]
["brackets for 7.6 litre sharps",null,null,0,0,0]
["brackets for 10 litre sharps",null,null,0,0,0]
["Bio Hazardous tape \n48mm x 50m",null,null,0,0,0]
["Spill kit",null,null,0,0,0]
["Tissue Register",null,null,0,0,0]
["Bio Hazardous Signage 1",null,null,0,0,0]
["Bio Hazardous Signage 2",null,null,0,0,0]
["EXTRA ORDINARY ARTICLES"]
[]
["florescent tubes \n6ft cardboard box",null,null,0,0,0]
["florescent tubes \n8ft cardboard box",null,null,0,0,0]
["florescent tubes \n5ft cardboard box",null,null,0,0,0]

{"sheet":"Central Karoo","index":5,"n_rows":101,"n_cols":6,"rows_kept":101,"merged":[[1,0,1,5],[2,0,2,5],[4,0,4,5],[5,0,5,5],[6,0,6,5],[14,0,14,5],[15,0,15,5],[21,0,21,5],[34,0,34,5],[35,1,35,2],[36,1,36,2],[37,1,37,2],[38,1,38,2],[39,1,39,2],[40,1,40,2],[41,1,41,2],[42,1,42,2],[43,1,43,2],[45,0,45,5],[53,0,53,5],[59,0,59,5],[61,0,61,5],[62,0,62,5],[68,0,68,5]]}
[]
["WCGHSC 0329/2025: HEALTH CARE RISK WASTE HANDLING SERVICE FOR A THREE YEAR PERIOD"]
["WCBD 3.1  PRICING SCHEDULE"]
["Bidder Name: "]
["CENTRAL KAROO DISTRICT"]
["BIO HAZARDOUS WASTE/ INFECTIOUS WASTE (INFECTIOUS WASTE DISPOSABLE BOX SET"]
["Complete Box set = Box with lid, liner and cable tie"]
["ITEM DESCRIPTION","Unit","Max Waste Mass (kg)","BID PRICE INCLUDING VAT -    YEAR 1","BID PRICE INCLUDING VAT -   YEAR 2","BID PRICE INCLUDING VAT -    YEAR 3"]
["25 litre box set","each",null,0,0,0]
["50 litre box set","each",null,0,0,0]
["90 litre box set","each",null,0,0,0]
["140 to 142 litre box sets: \nBidder to quote on any size in this range, Bidders must only quote on one item.  \nIndicate which size you have quoted on:","each",null,0,0,0]
["Infectious waste per kilogram rate (inclusive of collection/transport, treatment and disposal)","rate ",null,0,0,0]
["Total amount for catergory",null,null,{"$f":"SUM(D9:D13)","v":0},{"$f":"SUM(E9:E13)","v":0},{"$f":"SUM(F9:F13)","v":0}]
["INFECTIOUS WASTE RE-USABLE CONTAINERS (RED)"]
["Container = Container, cable tie, liner and disposal rate"]
["ITEM DESCRIPTION","Unit","Max Waste Mass (kg)","BID PRICE INCLUDING VAT -    YEAR 1                       All inclusive Service ","BID PRICE INCLUDING VAT -    YEAR 2                   All inclusive Service ","BID PRICE INCLUDING VAT -    YEAR 3                       All inclusive Service "]
["45 to 50 litre Re-usable:\nBidder to quote on any size in this range, Bidders must only quote on one item.  \nIndicate which size you have quoted on:","each",null,0,0,0]
["70 to 90 litre Re-usable:\nBidder to quote on any size in this range, Bidders must only quote on one item.  \nIndicate which size you have quoted on:","each",null,0,0,0]
["120 to 125 litre Re-usable\nBidder to quote on any size in this range, Bidders must only quote on one item.  \nIndicate which size you have quoted on:","each",null,0,0,0]
["Total amount for catergory",null,null,{"$f":"SUM(D18:D20)","v":0},{"$f":"SUM(E18:E20)","v":0},{"$f":"SUM(F18:F20)","v":0}]
["SHARPS WASTE (YELLOW)"]
["ITEM DESCRIPTION - CONTAINER","Unit","Max Waste Mass (kg)","BID PRICE INCLUDING VAT -    YEAR 1","BID PRICE INCLUDING VAT -   YEAR 2","BID PRICE INCLUDING VAT -    YEAR 3"]
["500 ml","each ",null,0,0,0]
["1 litre","each ",null,0,0,0]
["5 litre","each ",null,0,0,0]
["7.6 litre","each ",null,0,0,0]
["10 litre","each ",null,0,0,0]
["15 litreTROCAR","each ",null,0,0,0]
["20 litre","each ",null,0,0,0]
["25 litre","each ",null,0,0,0]
["60 Litre  -  Long Sharps ","each ",null,0,0,0]
["Sharps Waste Per Kilogram Rate (inclusive of collection/transport, treatment and disposal)\n","rate "]
["Total amount for catergory",null,null,{"$f":"SUM(D24:D31)","v":0},{"$f":"SUM(E24:E31)","v":0},{"$f":"SUM(F24:F31)","v":0}]
["LINERS (RED)"]
["ITEM DESCRIPTION - LINER","Unit",null,"BID PRICE INCLUDING VAT -    YEAR 1","BID PRICE INCLUDING VAT -   YEAR 2","BID PRICE INCLUDING VAT -    YEAR 3"]
["30 litre (60um)","per pack of ten (10)",null,0,0,0]
["50 litre (60um)","per pack of ten (10)",null,0,0,0]
["Sputum liner (60um)","per pack of ten (10)",null,0,0,0]
["70 litre (80um)","per pack of ten (10)",null,0,0,0]
["90 litre (80um)","per pack of ten (10)",null,0,0,0]
["142 litre (80um)","per pack of ten (10)",null,0,0,0]
["matress plastice liner (80um)","per pack of ten (10)",null,0,0,0]
["soiled matress ","rate per matress",null,0,0,0]
["Total amount for catergory",null,null,{"$f":"SUM(D37:D44)","v":0},{"$f":"SUM(E37:E44)","v":0},0]
["ANATOMICAL WASTE (RED)"]
["ITEM DESCRIPTION - CONTAINER","Unit","Max Waste Mass (kg)","BID PRICE INCLUDING VAT -    YEAR 1","BID PRICE INCLUDING VAT -   YEAR 2","BID PRICE INCLUDING VAT -    YEAR 3"]
["1 litre","each",null,0,0,0]
["5 litre","each",null,0,0,0]
["10 litre","each",null,0,0,0]
["20 litre","each",null,0,0,0]
["Anatomical Per Kilogram Rate (inclusive of collection/transport, treatment and disposal)","rate",null,0,0,0]
["120 litre red re-usable wheelie bin - for large/long limb amputations- All Inclusive of liner, cable tie, and disposable rate","All Inclusive rate each",null,0,0,0]
["PHARMACEUTICAL WASTE (DARK GREEN)"]
["ITEM DESCRIPTION - CONTAINER","Unit","Max Waste Mass (kg)","BID PRICE INCLUDING VAT -    YEAR 1","BID PRICE INCLUDING VAT -   YEAR 2","BID PRICE INCLUDING VAT -    YEAR 3"]
["5 litre","each",null,0,0,0]
["10 litre","each",null,0,0,0]
["20 litre","each",null,0,0,0]
["Pharmaceutical Per Kilogram Rate (inclusive of collection/transport, treatment and disposal)","rate",null,0,0,0]
["RADIOACTIVE WASTE ON QUOTATION"]
["ITEM DESCRIPTION - CONTAINER","Unit","Max Waste Mass (kg)","BID PRICE INCLUDING VAT -    YEAR 1","BID PRICE INCLUDING VAT -   YEAR 2","BID PRICE INCLUDING VAT -    YEAR 3"]
["On quotation basis - related to market value"]
["CYTOTOXIC WASTE (DARK GREEN)"]
["ITEM DESCRIPTION - CONTAINER","Unit","Max Waste Mass (kg)","BID PRICE INCLUDING VAT -    YEAR 1","BID PRICE INCLUDING VAT -   YEAR 2","BID PRICE INCLUDING VAT -    YEAR 3"]
["5 litre sharps yellow with\nCytotoxic hazard label (the sharps is Yellow due to legislation all other cytotoxic containers are dark green)",null,null,0,0,0]
["5 litre dark green with\nCytotoxic hazard label",null,null,0,0,0]
["20 litre dark green with\nCytotoxic hazard label",null,null,0,0,0]
["per kilogram rate",null,null,0,0,0]
["ISOLATION WASTE (BOX WITH LIDS)"]
[]
["25 litre box with lid",null,null,0,0,0]
["50 litre box with lid",null,null,0,0,0]
["90 litre box with lid",null,null,0,0,0]
["142 litre box with lid",null,null,0,0,0]
["per kilogram rate",null,null,0,0,0]
["SHARPS CONTAINERS"]
[]
["1 litre",null,null,0,0,0]
["5 litres",null,null,0,0,0]
["10 litres",null,null,0,0,0]
["15 litres TROCAR",null,null,0,0,0]
["20 litres",null,null,0,0,0]
["25 litres",null,null,0,0,0]
["Isolation waste per kilogram rate (incl. collection, transport, treatment and disposal)",null,null,0,0,0]
["Isolation waste stickers inline with SANS Code 10248-1:2008 size: 100mm x 100mm",null,null,0,0,0]
["ACCESSORIES"]
[]
["cable ties 100 pack",null,null,0,0,0]
["brackets for 5 litre sharps",null,null,0,0,0]
["brackets for 7.6 litre sharps",null,null,0,0,0]
["brackets for 10 litre sharps",null,null,0,0,0]
["Bio Hazardous tape \n48mm x 50m",null,null,0,0,0]
["Spill kit",null,null,0,0,0]
["Tissue Register",null,null,0,0,0]
["Bio Hazardous Signage 1",null,null,0,0,0]
["Bio Hazardous Signage 2",null,null,0,0,0]
["EXTRA ORDINARY ARTICLES"]
[]
["florescent tubes \n6ft cardboard box",null,null,0,0,0]
["florescent tubes \n8ft cardboard box",null,null,0,0,0]
["florescent tubes \n5ft cardboard box",null,null,0,0,0]